bitfinex/quotes_SOLUSD_20240816
["timestamp","ask_amount","ask_price","bid_price","bid_amount"]
[1723831804674,7.1922,139.04,139.0,0.3737463]
[1723831805781,15.7534,139.12,139.0,0.3737463]
[1723831805993,15.7534,139.12,139.0,7.5679463]
[1723831806153,15.7534,139.12,139.01,45.0]
[1723831806990,15.7534,139.12,139.0,63.3585463]
[1723831807204,7.1902,139.08,139.0,45.3737463]
[1723831807357,7.1891,139.1,139.02,17.9823]
[1723831807697,16.6457,139.17,139.0,96.5286463]
[1723831807698,7.1882,139.12,139.03,20.0]
[1723831807984,7.1868,139.15,139.09,7.1892]
[1723831808155,6.1906,139.19,139.0,60.5575463]
[1723831808357,7.1912,139.06,139.0,22.7516463]
[1723831808666,7.192,139.05,139.0,0.3737463]
[1723831809078,7.1912,139.06,139.0,7.5678463]
[1723831809273,15.8767,139.17,139.0,0.3737463]
[1723831809473,6.06,139.14,139.0,0.3737463]
[1723831809669,7.1928,139.03,139.0,0.3737463]
[1723831810965,20.0,139.13,139.0,0.3737463]
[1723831811169,6.06,139.14,139.02,7.193]
[1723831811377,6.06,139.14,139.03,45.0]
[1723831811891,15.8767,139.17,139.04,6.3985]
[1723831812066,15.8767,139.17,139.05,45.0]
[1723831812256,15.8767,139.17,139.08,7.19]
[1723831812462,15.329,139.22,139.09,62.9733]
[1723831812692,15.329,139.22,139.1,7.1886]
[1723831812873,13.99734727,139.24,139.14,7.1866]
[1723831812874,23.1746,139.24,139.14,7.1866]
[1723831813185,23.1746,139.24,139.1,45.0]
[1723831813186,6.5289,139.24,139.1,45.0]
[1723831814070,7.187,139.14,139.1,45.0]
[1723831814274,7.1865,139.15,139.09,45.0]
[1723831814494,7.1844,139.19,139.09,45.0]
[1723831814705,7.1844,139.19,139.13,7.187]
[1723831814917,7.1849,139.18,139.14,45.0]
[1723831815218,15.329,139.27,139.14,45.0]
[1723831815382,7.1838,139.21,139.14,45.0]
[1723831815579,7.1829,139.22,139.15,17.9654]
[1723831815782,7.1829,139.22,139.16,52.1859]
[1723831816015,7.1835,139.21,139.16,45.0]
[1723831816209,15.329,139.27,139.16,45.0]
[1723831816400,22.62436364,139.32,139.17,17.9628]
[1723831816599,7.182,139.24,139.19,7.1843]
[1723831816801,7.182,139.24,139.2,45.0]
[1723831817006,7.1814,139.25,139.2,45.0]
[1723831817314,7.1814,139.25,139.2,52.1837]
[1723831817621,15.1522,139.32,139.21,7.1832]
[1723831817785,15.1522,139.32,139.22,45.0]
[1723831818325,6.3717,139.34,139.24,7.1816]
[1723831818494,6.3717,139.34,139.25,45.0]
[1723831818996,16.4813,139.37,139.25,62.9523]
[1723831819198,16.4813,139.37,139.27,7.1801]
[1723831819388,16.4813,139.37,139.28,45.0]
[1723831819796,16.4813,139.37,139.27,45.0]
[1723831819997,6.4094,139.39,139.29,7.1791]
[1723831820311,6.4094,139.39,139.3,45.0]
[1723831820519,16.5869,139.4,139.31,7.1778]
[1723831820694,16.5869,139.4,139.33,7.1769]
[1723831821019,7.1756,139.36,139.34,45.0]
[1723831821188,7.1756,139.36,139.32,45.0]
[1723831821189,7.1757,139.36,139.32,45.0]
[1723831821391,7.1757,139.36,139.31,45.0]
[1723831821590,7.1757,139.36,139.31,52.1782]
[1723831822102,7.1751,139.37,139.31,52.1782]
[1723831822612,7.1757,139.36,139.31,45.0]
[1723831822808,7.1751,139.43,139.31,45.0]
[1723831823013,20.0,139.42,139.31,45.0]
[1723831823216,20.0,139.42,139.26,17.9509]
[1723831823524,20.0,139.42,139.28,17.9484]
[1723831823727,20.0,139.42,139.24,6.0393]
[1723831824016,7.1747,139.38,139.3,17.946]
[1723831824221,7.1753,139.37,139.32,7.1776]
[1723831824441,7.1734,139.41,139.34,7.1766]
[1723831824641,6.1845,139.44,139.34,52.1766]
[1723831825015,7.1744,139.39,139.34,45.0]
[1723831825229,7.1746,139.38,139.34,45.0]
[1723831825714,7.1746,139.38,139.33,52.1771]
[1723831825922,6.1845,139.44,139.33,45.0]
[1723831825923,7.1757,139.36,139.33,45.0]
[1723831826123,7.1756,139.36,139.33,45.0]
[1723831826339,6.1845,139.44,139.29,17.9477]
[1723831826651,7.6762,139.35,139.29,7.1792]
[1723831826814,7.177,139.34,139.28,7.1796]
[1723831827128,0.5,139.35,139.29,17.9475]
[1723831827306,0.5,139.35,139.3,7.1786]
[1723831827729,7.1772,139.33,139.31,45.0]
[1723831827932,0.5,139.35,139.26,17.9513]
[1723831828441,23.1509,139.35,139.19,6.3268]
[1723831828739,20.0,139.34,139.19,6.3268]
[1723831828913,7.1827,139.23,139.17,7.1852]
[1723831829115,7.1827,139.23,139.16,17.9643]
[1723831829319,7.1829,139.22,139.17,7.1853]
[1723831830120,20.0,139.34,139.16,25.1501]
[1723831830326,45.0,139.33,139.16,17.9643]
[1723831830627,22.6509,139.25,139.15,7.1863]
[1723831830841,20.0,139.24,139.15,7.1863]
[1723831831037,20.0,139.24,139.15,7.1864]
[1723831831343,7.1838,139.21,139.15,7.1864]
[1723831831545,20.0,139.24,139.15,17.9653]
[1723831831843,20.0,139.24,139.12,55.9399]
[1723831831844,42.6631,139.32,139.18,7.1847]
[1723831832145,42.6631,139.32,139.19,17.9601]
[1723831832348,22.6631,139.32,139.19,17.9601]
[1723831832514,22.6631,139.32,139.2,45.0]
[1723831832715,22.6631,139.32,139.22,7.1827]
[1723831832938,22.6631,139.32,139.23,45.0]
[1723831833446,22.6631,139.32,139.22,45.0]
[1723831833753,22.6631,139.32,139.23,45.0]
[1723831833950,22.6631,139.32,139.22,45.0]
[1723831834324,22.6631,139.32,139.22,52.1827]
[1723831834742,20.0,139.31,139.22,52.1827]
[1723831835136,20.0,139.31,139.17,33.3539]
[1723831835323,7.1814,139.25,139.2,7.1838]
[1723831835520,7.1808,139.26,139.2,7.1838]
[1723831835754,7.1808,139.26,139.16,55.9289]
[1723831835755,20.0,139.31,139.16,17.9649]
[1723831836055,7.1835,139.21,139.16,25.1507]
[1723831836455,7.1824,139.23,139.17,7.1853]
[1723831836634,7.1834,139.21,139.16,25.1508]
[1723831837052,27.1829,139.22,139.17,7.1854]
[1723831837255,7.1824,139.23,139.16,17.9649]
[1723831837470,7.1824,139.23,139.17,7.185]
[1723831837681,7.1831,139.22,139.17,7.185]
[1723831838054,7.1825,139.23,139.18,52.1849]
[1723831838367,7.1811,139.26,139.21,7.1833]
[1723831838572,7.1811,139.26,139.18,45.0]
[1723831838573,7.1804,139.27,139.22,52.1828]
[1723831839153,22.6631,139.32,139.22,45.0]
[1723831839580,22.6631,139.32,139.21,45.0]
[1723831840770,20.0,139.31,139.21,45.0]
[1723831841073,20.0,139.31,139.18,7.1848]
[1723831841278,20.0,139.31,139.2,7.1839]
[1723831841569,20.0,139.31,139.21,7.1832]
[1723831842158,20.0,139.31,139.21,7.1833]
[1723831842360,20.0,139.31,139.22,46.43483577]
[1723831842670,20.0,139.31,139.22,45.0]
[1723831842966,20.0,139.31,139.21,45.0]
[1723831843349,7.1813,139.25,139.21,45.0]
[1723831843547,7.1808,139.26,139.21,52.1832]
[1723831843748,7.1804,139.27,139.21,52.1832]
[1723831843956,0.5,139.35,139.25,7.1813]
[1723831844285,0.5,139.35,139.23,17.9554]
[1723831844286,0.5,139.35,139.26,46.43336882]
[1723831844510,7.1778,139.32,139.27,8.61316589]
[1723831844816,7.1791,139.3,139.28,45.0]
[1723831844976,7.1792,139.29,139.28,45.0]
[1723831846171,27.1792,139.29,139.28,45.0]
[1723831846408,20.0,139.29,139.19,17.9605]
[1723831846601,20.0,139.28,139.19,17.9605]
[1723831847007,7.1824,139.23,139.18,7.1847]
[1723831847587,7.183,139.22,139.16,17.964]
[1723831847886,23.0746,139.34,139.16,39.384]
[1723831848086,7.1825,139.23,139.18,7.1845]
[1723831848282,7.1825,139.23,139.17,7.1852]
[1723831848502,7.1829,139.22,139.17,7.1852]
[1723831848683,7.1823,139.23,139.18,7.1848]
[1723831848884,7.1819,139.24,139.19,7.1843]
[1723831849106,7.1806,139.27,139.21,7.1829]
[1723831849318,23.0746,139.34,139.22,45.0]
[1723831849509,20.0,139.33,139.21,45.0]
[1723831850108,7.1823,139.24,139.21,45.0]
[1723831850311,20.0,139.33,139.2,45.0]
[1723831850516,7.1821,139.24,139.19,45.0]
[1723831850706,7.1821,139.24,139.19,52.1843]
[1723831851098,20.0,139.33,139.2,17.9596]
[1723831851421,20.0,139.33,139.21,45.0]
[1723831851718,7.1822,139.24,139.21,45.0]
[1723831852110,7.1822,139.24,139.2,45.0]
[1723831852305,20.0,139.33,139.2,45.0]
[1723831852502,7.1833,139.22,139.2,45.0]
[1723831853098,7.1824,139.23,139.2,45.0]
[1723831853303,7.1824,139.23,139.19,45.0]
[1723831854121,20.0,139.33,139.19,45.0]
[1723831854328,20.0,139.33,139.14,6.6022]
[1723831854329,20.0,139.33,139.14,24.5689]
[1723831854499,20.0,139.33,139.14,45.9889]
[1723831854698,20.0,139.33,139.14,39.3867]
[1723831854699,7.47765165,139.32,139.14,39.3867]
[1723831854911,7.47765165,139.32,139.16,7.1856]
[1723831855205,20.0,139.31,139.16,7.1856]
[1723831855416,20.0,139.31,139.15,7.1863]
[1723831856007,21.6837,139.3,139.15,7.1863]
[1723831856225,21.6837,139.28,139.1,7.47659878]
[1723831856410,21.6837,139.28,139.1,7.1886]
[1723831856731,20.0,139.29,139.08,17.9743]
[1723831856732,21.6837,139.26,139.08,25.164]
[1723831856928,20.0,139.25,139.08,17.9743]
[1723831857109,65.0,139.25,139.08,17.9743]
[1723831857622,6.4015,139.22,139.04,258.5]
[1723831857821,6.4015,139.22,139.03,7.1925]
[1723831857822,60.2822,139.21,139.03,7.1925]
[1723831858026,7.1906,139.07,139.02,25.1755]
[1723831858203,15.2822,139.12,139.02,7.4755011]
[1723831858404,15.2822,139.12,138.99,25.1807]
[1723831858405,7.1922,139.04,138.99,25.1807]
[1723831859109,7.1922,139.04,138.99,17.9861]
[1723831859322,7.1929,139.03,138.96,39.4105]
[1723831860131,15.2822,139.12,138.98,7.1952]
[1723831860305,7.1937,139.01,138.93,31.42]
[1723831860511,7.1937,139.01,138.95,7.1964]
[1723831860712,6.014,139.1,138.95,21.42]
[1723831860937,7.1934,139.02,138.97,17.9883]
[1723831861108,7.1937,139.01,138.94,17.993]
[1723831861310,7.1937,139.01,138.95,7.1967]
[1723831861819,7.1937,139.01,138.94,25.1903]
[1723831862237,7.1937,139.01,138.95,7.1966]
[1723831862444,16.2871,139.04,138.96,17.9896]
[1723831862614,22.3011,139.1,138.96,17.9896]
[1723831862819,20.0,139.09,138.98,7.1951]
[1723831863326,22.3011,139.1,138.99,45.0]
[1723831863836,22.3011,139.1,138.99,52.1947]
[1723831864140,22.3011,139.1,139.0,7.5677463]
[1723831864317,22.3011,139.1,139.01,45.0]
[1723831864517,6.3291,139.14,139.01,45.0]
[1723831864743,6.3291,139.14,139.05,7.1916]
[1723831865042,16.4596,139.15,139.08,7.19]
[1723831865218,6.3291,139.19,139.09,45.0]
[1723831865813,16.4596,139.21,139.1,7.1885]
[1723831866110,16.4596,139.21,139.11,45.0]
[1723831866509,7.1853,139.18,139.12,7.1875]
[1723831866711,9.17181304,139.24,139.14,7.1869]
[1723831866712,7.1844,139.19,139.14,7.1869]
[1723831866926,7.1839,139.2,139.13,45.0]
[1723831867140,7.1839,139.2,139.14,25.1531]
[1723831867337,7.1839,139.2,139.15,45.0]
[1723831867550,6.3291,139.24,139.15,45.0]
[1723831867925,7.1839,139.2,139.15,52.1863]
[1723831869161,6.3291,139.24,139.15,45.0]
[1723831869362,7.1849,139.18,139.15,45.0]
[1723831869524,6.3291,139.24,139.14,45.0]
[1723831869729,7.1854,139.17,139.14,45.0]
[1723831869932,6.3291,139.24,139.14,45.0]
[1723831870428,15.9978,139.27,139.17,7.1853]
[1723831870631,15.9978,139.27,139.14,17.9667]
[1723831870632,15.9978,139.27,139.18,45.0]
[1723831871551,15.9978,139.27,139.11,17.971]
[1723831872059,15.9978,139.27,139.11,25.1594]
[1723831872255,20.0,139.26,139.08,25.165]
[1723831872427,45.0,139.25,139.08,25.165]
[1723831872626,20.0,139.24,139.08,25.165]
[1723831873037,20.0,139.24,139.09,7.1895]
[1723831873551,20.0,139.24,139.1,17.9716]
[1723831873762,20.0,139.26,139.11,7.1881]
[1723831873928,7.186,139.16,139.12,45.0]
[1723831874127,20.0,139.26,139.11,45.0]
[1723831874448,15.9978,139.27,139.12,17.9694]
[1723831874449,7.1853,139.18,139.12,17.9694]
[1723831874670,15.9978,139.27,139.12,17.9694]
[1723831874859,15.9978,139.27,139.13,45.0]
[1723831875757,7.1848,139.19,139.14,7.1868]
[1723831875948,7.1849,139.18,139.13,52.1874]
[1723831876143,7.1849,139.18,139.13,45.0]
[1723831876356,7.1849,139.18,139.13,52.1873]
[1723831876565,7.1845,139.19,139.13,52.1873]
[1723831876766,15.9978,139.27,139.13,45.0]
[1723831877157,7.1843,139.2,139.13,45.0]
[1723831877562,7.1845,139.19,139.13,45.0]
[1723831877767,7.1839,139.2,139.14,7.1868]
[1723831877963,20.0,139.26,139.12,25.1574]
[1723831878172,20.0,139.26,139.09,35.9479]
[1723831878173,20.0,139.26,139.11,7.1884]
[1723831878359,20.0,139.26,139.12,7.1879]
[1723831878653,20.0,139.26,139.12,7.1878]
[1723831878856,20.0,139.26,139.08,17.9749]
[1723831879068,6.5583,139.25,139.08,17.9749]
[1723831879264,20.0,139.24,139.08,19.41158515]
[1723831879664,20.0,139.24,139.08,17.9749]
[1723831879854,20.0,139.24,139.1,17.972]
[1723831880057,20.0,139.24,139.11,1.1892106]
[1723831880274,6.5583,139.25,139.13,7.1875]
[1723831880477,6.5583,139.25,139.12,17.9695]
[1723831880850,6.5583,139.25,139.14,17.967]
[1723831881149,6.5583,139.25,139.15,45.0]
[1723831882075,6.5583,139.25,139.12,7.1879]
[1723831882076,7.1854,139.17,139.12,7.1879]
[1723831882452,6.5583,139.25,139.14,21.42]
[1723831882663,6.5583,139.25,139.13,17.9681]
[1723831883162,7.1825,139.23,139.18,7.1845]
[1723831883365,6.5583,139.25,139.19,45.0]
[1723831883572,7.1835,139.21,139.19,45.0]
[1723831883791,7.1835,139.21,139.18,45.0]
[1723831884268,7.1835,139.21,139.17,45.0]
[1723831884652,7.183,139.22,139.17,52.1854]
[1723831885106,6.5583,139.25,139.17,45.0]
[1723831885259,20.0,139.24,139.17,45.0]
[1723831885459,6.5583,139.25,139.17,45.0]
[1723831885796,15.9978,139.27,139.18,7.1847]
[1723831885994,15.9978,139.27,139.19,45.0]
[1723831886491,15.9978,139.27,139.1,7.1889]
[1723831886668,15.9978,139.27,139.09,20.0]
[1723831886997,15.9978,139.27,139.05,649.9698]
[1723831886998,15.9978,139.27,139.1,7.1886]
[1723831887156,20.0,139.26,139.08,17.9744]
[1723831887355,6.2719,139.25,139.08,25.1644]
[1723831887792,20.0,139.24,139.08,17.9744]
[1723831887960,6.2719,139.22,139.06,7.1911]
[1723831888161,20.0,139.21,139.07,7.1905]
[1723831889087,20.0,139.21,139.09,7.1894]
[1723831889257,6.2719,139.22,139.1,7.1886]
[1723831889258,7.1865,139.15,139.1,7.1886]
[1723831889456,7.1865,139.15,139.09,25.1624]
[1723831889902,7.1865,139.15,139.1,7.1889]
[1723831890071,7.1865,139.15,139.07,21.42]
[1723831890072,7.188,139.12,139.07,7.1901]
[1723831890268,7.188,139.12,139.07,7.1904]
[1723831890595,7.1891,139.1,139.08,45.0]
[1723831890766,7.1895,139.09,139.08,45.0]
[1723831891496,6.288,139.12,139.01,7.1936]
[1723831891691,20.0,139.11,139.01,7.1936]
[1723831891996,15.1873,139.13,139.02,20.0]
[1723831892199,7.1889,139.11,139.04,17.9798]
[1723831892401,7.1889,139.11,139.05,7.1912]
[1723831892569,7.1889,139.11,139.06,7.191]
[1723831893010,7.1889,139.11,139.07,45.0]
[1723831893197,15.1873,139.13,139.07,45.0]
[1723831893569,6.5066,139.16,139.08,1.4373709]
[1723831893766,6.5066,139.16,139.09,7.1894]
[1723831894072,6.5066,139.16,139.1,45.0]
[1723831894603,6.5066,139.16,139.07,62.9758]
[1723831894805,6.5066,139.16,139.08,7.1899]
[1723831895002,6.5066,139.16,139.09,45.0]
[1723831895598,6.5066,139.16,139.09,52.1892]
[1723831896086,6.5066,139.16,139.09,45.0]
[1723831897773,6.5066,139.16,139.09,52.1894]
[1723831897970,15.3002,139.18,139.12,7.1879]
[1723831898300,15.3002,139.18,139.09,84.3934]
[1723831898301,15.3002,139.18,139.13,45.0]
[1723831898606,7.187,139.14,139.13,45.0]
[1723831898779,7.187,139.14,139.09,45.0]
[1723831899511,7.187,139.14,139.09,52.1894]
[1723831901000,7.1866,139.15,139.1,8.62426427]
[1723831901204,7.1866,139.15,139.11,46.43516109]
[1723831901387,7.1859,139.16,139.11,52.1884]
[1723831901593,6.1754,139.2,139.12,1.43505791]
[1723831901791,6.1754,139.2,139.13,7.1871]
[1723831902023,6.1754,139.2,139.14,53.62213532]
[1723831902196,6.1754,139.2,139.14,46.43533532]
[1723831902390,15.8703,139.23,139.14,45.0]
[1723831902922,15.8703,139.23,139.13,45.0]
[1723831903320,15.8703,139.23,139.13,52.1874]
[1723831903524,15.8703,139.23,139.13,45.0]
[1723831903708,20.0,139.22,139.13,45.0]
[1723831904193,20.0,139.22,139.09,17.9732]
[1723831904512,20.0,139.22,139.07,77.3707]
[1723831904731,20.0,139.22,139.11,17.9707]
[1723831904935,20.0,139.22,139.08,37.9744]
[1723831905114,20.0,139.22,139.1,7.1887]
[1723831905448,7.1868,139.15,139.1,7.1887]
[1723831905608,7.1868,139.15,139.11,45.0]
[1723831906337,7.1861,139.16,139.11,52.1885]
[1723831907517,23.03741658,139.22,139.11,45.0]
[1723831907845,7.1861,139.16,139.11,52.1881]
[1723831908704,7.1864,139.15,139.11,45.0]
[1723831908907,7.1864,139.15,139.1,25.161]
[1723831909236,7.1856,139.17,139.12,7.188]
[1723831910417,7.1856,139.17,139.13,45.0]
[1723831911741,7.1859,139.16,139.13,45.0]
[1723831911943,23.03741658,139.22,139.12,45.0]
[1723831912172,7.1871,139.14,139.09,7.1895]
[1723831912671,7.1871,139.14,139.09,25.1628]
[1723831912971,23.03741658,139.22,139.06,25.1679]
[1723831912972,7.1886,139.11,139.06,25.1679]
[1723831913171,7.1902,139.08,139.03,25.1736]
[1723831913466,6.3279,139.13,139.01,7.1935]
[1723831913777,20.0,139.12,139.0,0.3737463]
[1723831914066,21.9008,139.11,139.0,0.3737463]
[1723831914234,6.3279,139.09,139.0,0.3737463]
[1723831914575,6.3279,139.07,138.88,18.0006]
[1723831914737,35.5729,139.06,138.83,26.3868]
[1723831914937,35.5729,139.06,138.86,8.0747463]
[1723831915161,35.5729,139.06,138.87,21.42]
[1723831915371,80.5729,139.06,138.86,18.8763463]
[1723831915968,35.5729,139.06,138.91,17.9971]
[1723831916339,7.1953,138.98,138.91,25.1959]
[1723831916538,35.5729,139.06,138.86,0.8737463]
[1723831916539,6.4694,139.05,138.88,18.001]
[1723831916882,7.1964,138.96,138.88,18.001]
[1723831917173,7.1969,138.95,138.88,18.001]
[1723831917478,15.2631,138.95,138.86,0.8737463]
[1723831917651,15.2631,138.95,138.87,7.2008]
[1723831917851,15.2631,138.95,138.88,18.0009]
[1723831917852,29.1216,138.95,138.88,18.0009]
[1723831918051,7.1974,138.94,138.88,25.2012]
[1723831918437,7.1978,138.93,138.88,25.2012]
[1723831918939,7.1974,138.94,138.89,7.1997]
[1723831919273,21.9248,138.95,138.88,18.0009]
[1723831919274,29.1217,138.95,138.88,18.0009]
[1723831919665,7.1959,138.97,138.9,17.9976]
[1723831920085,21.4191,139.05,138.9,17.9976]
[1723831920255,2.90558414,139.01,138.93,7.1977]
[1723831920574,2.90558414,139.01,138.91,45.0]
[1723831920575,7.1943,139.0,138.94,45.0]
[1723831920783,21.4191,139.05,138.95,7.1964]
[1723831920784,7.1937,139.01,138.95,7.1964]
[1723831920948,7.1932,139.02,138.96,7.1959]
[1723831921155,7.1932,139.02,138.97,45.0]
[1723831921478,21.4191,139.05,138.97,45.0]
[1723831921675,21.4191,139.05,138.98,1.43674416]
[1723831921871,21.4191,139.05,139.0,7.1937]
[1723831922077,21.4191,139.05,139.01,52.1936]
[1723831922249,7.1906,139.07,139.02,7.1931]
[1723831922452,22.7951,139.1,139.05,7.1915]
[1723831922754,22.7951,139.1,139.06,7.1909]
[1723831922948,29.9842,139.1,139.04,25.1714]
[1723831923378,7.1884,139.12,139.07,45.0]
[1723831923558,16.4779,139.17,139.07,97.16]
[1723831923769,16.4779,139.17,139.1,17.9725]
[1723831924183,16.4779,139.17,139.12,7.1875]
[1723831924388,16.4779,139.17,139.1,17.9725]
[1723831924389,16.4779,139.17,139.1,25.161]
[1723831924567,16.4779,139.17,139.1,17.9725]
[1723831924948,16.4779,139.17,139.07,45.0]
[1723831924949,7.1865,139.15,139.07,45.0]
[1723831925479,7.1865,139.15,139.11,45.0]
[1723831926195,16.4779,139.17,139.11,28.3334]
[1723831926196,7.188,139.12,139.11,28.3334]
[1723831926477,6.3172,139.11,138.98,17.9878]
[1723831926988,7.1922,139.04,138.98,25.1828]
[1723831927482,6.3172,139.11,138.98,17.9878]
[1723831927651,20.0,139.1,138.98,17.9878]
[1723831927851,20.0,139.1,138.99,7.1947]
[1723831928194,20.0,139.1,139.0,7.1942]
[1723831928358,6.3172,139.11,138.98,17.9878]
[1723831928771,20.0,139.1,138.98,17.9878]
[1723831929083,20.0,139.1,139.01,17.984]
[1723831929469,6.3172,139.11,139.04,7.1917]
[1723831929677,6.3172,139.11,139.02,45.0]
[1723831929976,6.3172,139.11,139.03,1.43782348]
[1723831930345,6.1619,139.19,139.06,7.1911]
[1723831930546,6.1619,139.19,139.07,64.41353164]
[1723831930780,6.1619,139.19,139.07,17.9765]
[1723831931078,7.1887,139.11,139.05,7.1911]
[1723831931250,6.1619,139.19,139.06,45.0]
[1723831931451,7.1874,139.14,139.06,45.0]
[1723831931781,7.1865,139.15,139.09,7.1895]
[1723831931979,6.1619,139.19,139.08,17.9751]
[1723831932186,6.1619,139.19,139.13,7.187]
[1723831932497,6.1619,139.19,139.14,17.9671]
[1723831932652,7.1832,139.22,139.15,45.0]
[1723831932993,22.2992,139.25,139.15,52.1864]
[1723831932994,7.1834,139.21,139.15,52.1864]
[1723831933145,7.1828,139.23,139.15,45.0]
[1723831933349,22.2992,139.25,139.15,45.0]
[1723831933350,7.1829,139.22,139.16,7.1859]
[1723831933590,7.1834,139.21,139.15,52.1864]
[1723831934158,7.1828,139.22,139.16,7.1859]
[1723831934680,7.1859,139.17,139.11,17.9712]
[1723831934855,6.3157,139.25,139.03,699.7611]
[1723831935056,7.187,139.14,139.08,7.1896]
[1723831935383,6.3157,139.25,139.07,17.9757]
[1723831935765,45.0,139.24,139.06,22.426]
[1723831935970,20.0,139.23,139.06,22.426]
[1723831936166,45.0,139.22,139.07,7.1905]
[1723831936366,20.0,139.21,139.06,33.212]
[1723831936672,20.0,139.21,139.09,17.9733]
[1723831936876,20.0,139.21,139.09,25.1628]
[1723831937855,20.0,139.21,139.1,7.189]
[1723831938057,6.3157,139.25,139.11,17.9701]
[1723831938256,6.3157,139.25,139.12,45.0]
[1723831938476,6.3157,139.25,139.15,7.1864]
[1723831938802,6.3157,139.25,139.06,400.5354]
[1723831938953,7.187,139.15,139.07,37.9763]
[1723831939893,7.187,139.15,139.09,7.1894]
[1723831940090,6.4467,139.14,139.04,17.9802]
[1723831940454,7.1876,139.13,139.07,7.1901]
[1723831941362,7.1876,139.13,139.08,1.43586944]
[1723831941556,7.1876,139.13,139.07,7.1901]
[1723831941754,7.188,139.12,139.07,7.1901]
[1723831941984,7.188,139.12,139.06,25.1678]
[1723831942214,6.4467,139.14,139.07,1.43576153]
[1723831942512,6.5861,139.18,139.1,7.1885]
[1723831942690,20.0,139.17,139.11,45.0]
[1723831943179,20.0,139.17,139.1,52.1889]
[1723831943385,20.0,139.17,139.1,45.0]
[1723831943685,20.0,139.17,139.09,52.1893]
[1723831944093,20.0,139.17,139.09,45.0]
[1723831944911,20.0,139.17,139.06,7.191]
[1723831945278,20.0,139.17,139.02,17.9827]
[1723831945520,45.0,139.16,139.03,7.1925]
[1723831945681,20.0,139.15,139.02,25.1758]
[1723831946014,7.1907,139.07,139.02,17.9827]
[1723831946200,7.1907,139.07,139.02,25.1756]
[1723831946785,6.5975,139.06,138.95,7.47666517]
[1723831947005,7.1927,139.03,138.98,7.1951]
[1723831947581,7.1927,139.03,138.97,7.1957]
[1723831948017,6.5975,139.06,138.96,20.0]
[1723831948315,6.0568,139.12,139.01,17.9835]
[1723831948473,6.0568,139.12,139.03,7.1925]
[1723831948474,7.1896,139.09,139.03,7.1925]
[1723831949101,6.0568,139.12,139.01,17.9835]
[1723831949287,7.191,139.07,139.02,45.0]
[1723831949729,20.0,139.11,139.02,45.0]
[1723831950511,20.0,139.11,139.02,52.193]
[1723831951435,20.0,139.11,139.02,45.0]
[1723831951804,20.0,139.11,139.01,25.1771]
[1723831952007,20.0,139.11,139.02,7.1931]
[1723831953024,20.0,139.11,139.03,45.0]
[1723831954530,7.191,139.07,139.03,45.0]
[1723831955733,20.0,139.11,139.04,7.192]
[1723831956057,7.1901,139.08,139.05,45.0]
[1723831956233,7.1901,139.08,139.03,70.1735]